[Event "Tata Steel-A 80th"]
[Site "Wijk aan Zee"]
[Date "2018.01.26"]
[Round "11"]
[White "So, Wesley"]
[Black "Jones, Gawain C B"]
[Result "1-0"]
[ECO "E61"]
[WhiteElo "2792"]
[BlackElo "2640"]
[Annotator "Fernandez,D"]
[PlyCount "123"]
[EventDate "2018.01.13"]
[EventType "tourn"]
[EventRounds "13"]
[EventCountry "NED"]
[EventCategory "20"]
[SourceTitle "CBM 183"]
[Source "ChessBase"]
[SourceDate "2018.03.14"]
[SourceVersion "1"]
[SourceVersionDate "2018.03.14"]
[SourceQuality "1"]
[TimeControl "40/6000+30:20/3000+30:900+30"]

1. d4 {[%emt 0:00:00]} Nf6 {[%emt 0:00:28]} 2. c4 {[%emt 0:00:01]} g6 {[%emt 0:
00:08]} 3. g3 {[%emt 0:00:24]} Bg7 {[%emt 0:00:07]} 4. Bg2 {[%emt 0:00:43]} O-O
{[%emt 0:00:15]} 5. Nc3 {[%emt 0:00:33]} c5 {[%emt 0:00:31] Expressing a
willingness to play...a Benoni structure! Again Gawain Jones brings something
new to the top table. Obviously ...c6 or ...d6 are completely normal.} 6. dxc5
{[%emt 0:04:39]} Qa5 {[%emt 0:06:22]} 7. Qa4 {[%emt 0:11:04]} (7. Bd2 Qxc5 8.
Rc1 d6 9. b3 Nc6 10. Nh3 Bxh3 11. Bxh3 d5 $132 {Greet,A-Howell, D England 2017.
This was a game featuring another English star on the Black side of this line.}
) 7... Qxc5 {[%emt 0:00:43]} 8. Be3 {[%emt 0:00:12]} Qc7 {[%emt 0:02:42]} (8...
Qh5 9. h3 $1 $14 {is strangely unpleasant.}) 9. c5 {[%emt 0:04:03] This is
very maximalist play, trying to rule out both ... d6 and ...b6 at once.} Nc6 $6
{[%emt 0:09:53] Black prepares a gambit, but this may not have been best.} (
9... Na6 $5 {leads to some lines which just have to be mentioned!} 10. Rc1 $6 (
10. Qb5 Ng4 $132) (10. Nb5 Qe5 11. Bd4 Qf5 12. Rc1 d5 $132) 10... Nxc5 $1 {
Ignoring the idea White had set up against this. The move works due to the
filthy detail} 11. Nb5 Qc6 $3 $15 {and suddenly Black is the one playing for
an edge.}) 10. Rd1 {[%emt 0:04:05]} b6 {[%emt 0:14:56] Practically not a bad
move, as everything else is just nice for White.} (10... Qb8 11. Nf3 b6 {
is too slow: now White almost wins on the spot with} 12. Bf4 $16) 11. cxb6 {
[%emt 0:20:28]} Qb8 {[%emt 0:00:29]} 12. bxa7 {[%emt 0:12:04]} Qxb2 {[%emt 0:
00:17]} 13. Nb5 $1 {[%emt 0:00:06] Most accurate, but unfortunately for Black
also quite easy to find.} Bb7 {[%emt 0:11:22]} 14. Qb3 {[%emt 0:01:20]} Qxb3 {
[%emt 0:11:47]} (14... Qe5 $5 15. Nf3 Qh5 {is actually not trivial for White
to play - the best move is apparently} 16. Nh4 $1 $16) 15. axb3 {[%emt 0:00:02]
} Nxa7 {[%emt 0:00:50]} 16. Bxb7 {[%emt 0:00:07]} Rab8 {[%emt 0:00:30]
Bringing about an endgame where Black can put up some very inspired resistance,
but ultimately should lose against good play.} 17. Nxa7 {[%emt 0:15:49]} Rxb7 {
[%emt 0:00:10]} 18. f3 {[%emt 0:00:51]} Rxb3 {[%emt 0:01:35]} (18... e6 19. Nh3
Nd5 20. Bf2 Nc3 21. Rd2 d5 {is also maybe interesting, with the idea of ...d4
and ...e5 to play against White's minor pieces.}) 19. Bf2 {[%emt 0:03:50]} Ra8
{[%emt 0:05:58]} 20. Nh3 {[%emt 0:00:46]} Rb7 {[%emt 0:04:48]} 21. O-O {
[%emt 0:00:08]} Rbxa7 {[%emt 0:01:48]} 22. Bxa7 {[%emt 0:00:06]} Rxa7 {[%emt 0:
00:04]} 23. Ra1 {[%emt 0:00:05]} Rxa1 {[%emt 0:09:10]} 24. Rxa1 $16 {[%emt 0:
00:02] It is now just a technical question. While the fortress possibilities
are not small, and more than likely with perfect play the game is actually a
draw, Black is always going to lose this in a practical game unless he (for
instance) manages to exchange knights.} d5 {[%emt 0:00:37]} 25. Ra7 {[%emt 0:
02:10]} Bf8 {[%emt 0:01:59]} 26. Kg2 {[%emt 0:00:30]} Ne8 {[%emt 0:07:47]} 27.
Ra8 {[%emt 0:10:17]} Nd6 {[%emt 0:00:51]} 28. Ng5 {[%emt 0:01:43]} h6 {[%emt 0:
00:52]} 29. Nh7 $5 {[%emt 0:00:05] An interesting call, and not one I
necessarily agree with.} Kxh7 {[%emt 0:00:05]} 30. Rxf8 {[%emt 0:00:03]} Kg7 {
[%emt 0:02:55]} 31. Rd8 {[%emt 0:00:09]} Nc4 {[%emt 0:00:24]} 32. g4 {[%emt 0:
03:10]} e6 {[%emt 0:01:37]} 33. h4 {[%emt 0:02:26]} Kf6 {[%emt 0:00:53]} (33...
Ne3+ $5 {deserved consideration. I think if Black can get ...g5 for free then
he draws, but White's tempi don't work out either e.g.} 34. Kf2 Nd1+ 35. Kg3 (
35. Ke1 Ne3 {and since ...Ng2 is threatened White will have to go back.}) 35...
g5 36. e4 Nc3 $1 37. Rc8 Ne2+ $1 {It is rather useful that this is check.} 38.
Kf2 Nf4 $11 {This position has got to be a fortress.}) 34. Rh8 {[%emt 0:00:56]}
Kg7 {[%emt 0:00:17]} 35. Rc8 {[%emt 0:00:17]} Nd6 {[%emt 0:03:05]} 36. Rc6 {
[%emt 0:00:07]} Nb5 {[%emt 0:00:57]} 37. e3 {[%emt 0:02:26]} g5 {[%emt 0:02:24]
} 38. h5 {[%emt 0:00:23] So Black got ...g5 in but his knight has lost its
bearings a little bit.} Na3 {[%emt 0:01:34]} 39. Kg3 {[%emt 0:07:09]} Nc4 $2 {
[%emt 0:02:16] Losing a pawn, and possibly the decisive mistake.} (39... Nb5
40. Kf2 Kf6 {and even though it feels uncomfortable Black may be able to get
back on track soon with ...Ke7 and ...Nd6, since taking the h-pawn gets
White's rook trapped.}) 40. e4 {[%emt 0:00:00]} Ne5 {[%emt 0:05:02]} 41. exd5 {
[%emt 0:00:38]} exd5 {[%emt 0:00:17]} 42. Rd6 {[%emt 0:00:41]} Nd3 {[%emt 0:01:
37]} 43. Rxd5 {[%emt 0:01:09]} Nf4 {[%emt 0:01:53]} 44. Rf5 {[%emt 0:00:58]}
Ne6 {[%emt 0:01:32] Initially I thought there were still chances for this to
be a fortress but then I realised Black has too many targets. Maybe with the
h-pawns off the board?} 45. Kf2 {[%emt 0:00:27]} Nd4 {[%emt 0:12:37]} 46. Rd5 {
[%emt 0:00:24]} Ne6 {[%emt 0:00:06]} 47. Ke3 {[%emt 0:00:03]} Nf4 {[%emt 0:01:
15]} 48. Ra5 {[%emt 0:00:08]} Ng2+ {[%emt 0:01:57]} 49. Ke4 $18 {[%emt 0:00:20]
} Kf6 {[%emt 0:00:39]} 50. Rb5 {[%emt 0:00:53]} Kg7 {[%emt 0:01:35]} 51. Ke5 {
[%emt 0:00:34]} Ne1 {[%emt 0:00:59]} 52. Rb3 {[%emt 0:00:28]} Ng2 {[%emt 0:00:
12]} 53. Kd6 {[%emt 0:05:10]} Nf4 {[%emt 0:07:06]} 54. Rb5 {[%emt 0:01:36]} Kf8
{[%emt 0:03:16]} 55. Rf5 {[%emt 0:03:04]} Ng2 {[%emt 0:01:20]} 56. Kd7 {
[%emt 0:03:01]} Ne3 {[%emt 0:00:42]} 57. Rc5 {[%emt 0:00:43]} f5 {[%emt 0:08:
03]} 58. Ke6 {[%emt 0:06:38]} fxg4 {[%emt 0:00:39]} 59. Kf6 {[%emt 0:01:40]}
Kg8 {[%emt 0:00:06]} 60. Kg6 {[%emt 0:00:00]} Kf8 {[%emt 0:00:06]} 61. Re5 {
[%emt 0:01:07]} Nc4 {[%emt 0:01:56]} 62. Rf5+ {[%emt 0:00:14]} 1-0

[Event "Tata Steel-A 80th"]
[Site "Wijk aan Zee"]
[Date "2018.01.27"]
[Round "12"]
[White "Anand, Viswanathan"]
[Black "So, Wesley"]
[Result "1/2-1/2"]
[ECO "C83"]
[WhiteElo "2767"]
[BlackElo "2792"]
[Annotator "Fernandez,D"]
[PlyCount "64"]
[EventDate "2018.01.13"]
[EventType "tourn"]
[EventRounds "13"]
[EventCountry "NED"]
[EventCategory "20"]
[SourceTitle "CBM 183"]
[Source "ChessBase"]
[SourceDate "2018.03.14"]
[SourceVersion "1"]
[SourceVersionDate "2018.03.14"]
[SourceQuality "1"]
[TimeControl "40/6000+30:20/3000+30:900+30"]

1. e4 {[%emt 0:00:00]} e5 {[%emt 0:00:56]} 2. Nf3 {[%emt 0:00:00]} Nc6 {
[%emt 0:00:05]} 3. Bb5 {[%emt 0:00:00]} a6 {[%emt 0:01:58]} 4. Ba4 {[%emt 0:00:
51]} Nf6 {[%emt 0:00:16]} 5. O-O {[%emt 0:00:08]} Nxe4 {[%emt 0:01:38] Perhaps
forgetting, or not knowing, that the Open Ruy Lopez was basically co-invented
by Anand, in New York 1995 (it existed before, but his role was similar to
that of Kramnik with the Berlin Wall!)} 6. d4 {[%emt 0:01:31]} b5 {[%emt 0:00:
06]} 7. Bb3 {[%emt 0:00:10]} d5 {[%emt 0:00:05]} 8. dxe5 {[%emt 0:00:33]} Be6 {
[%emt 0:00:04]} 9. Nbd2 {[%emt 0:01:20]} Be7 {[%emt 0:00:09]} ({A little
history lesson is in order, beginnning with the move} 9... Nc5 {:} 10. c3 d4 (
10... Be7 {exists too, but after} 11. Bc2 {I feel White must have a more
pleasant position}) 11. Ng5 $5 {One of the most shocking moves in 'modern'
opening theory to an impressionable 9-year-old me, learning chess in 2004!}
dxc3 $6 (11... Qxg5 {was obviously tried too, and with best play Black is
committing to a piece sacrifice.} 12. Qf3 O-O-O 13. Bxe6+ fxe6 14. Qxc6 Qxe5
15. b4 Qd5 $1 $44 {Grischuk,A-Anand,V Wijk aan Zee 2005}) 12. Nxe6 fxe6 13.
bxc3 Qd3 14. Nf3 (14. Bc2 $5 Qxc3 15. Nb3 $13 {was ultimately decided upon as
White's best, and Black is in quite a bit of trouble here.}) 14... O-O-O 15.
Qe1 Nxb3 16. axb3 Kb7 17. Be3 Be7 18. Bg5 (18. Qc1 $5 $40) 18... h6 (18... Rhe8
$11) 19. Bxe7 Nxe7 20. Nd4 Rxd4 21. cxd4 Qxb3 22. Qe3 Qxe3 23. fxe3 Nd5 24. Kf2
Kb6 $44 {Kasparov,G-Anand,V New York 1995, Black had enough compensation to
draw.}) 10. c3 {[%emt 0:05:21]} O-O {[%emt 0:00:08]} 11. Bc2 {[%emt 0:05:23]}
f5 {[%emt 0:00:21]} (11... Bf5 $5) 12. Nb3 {[%emt 0:02:26]} (12. exf6 Nxf6 13.
Nb3 Bg4 14. Qd3 $32 {looks hard to play for Black, but maybe it is just me. A
useful game to look at: Anton Guijarro,D-Vidit,S Martuni 2016}) 12... Qd7 {
[%emt 0:00:08]} 13. Nfd4 {[%emt 0:01:13]} Nxd4 {[%emt 0:00:13]} 14. Nxd4 {
[%emt 0:05:03]} c5 {[%emt 0:00:06]} 15. Nxe6 {[%emt 0:00:09]} Qxe6 {[%emt 0:00:
04]} 16. f3 {[%emt 0:00:18]} Ng5 {[%emt 0:00:06]} 17. a4 {[%emt 0:00:18]} (17.
Bxg5 Bxg5 18. f4 $14 {might have been worth playing, not least to remind
Wesley of his loss to Carlsen from this event!}) 17... Rad8 {[%emt 0:00:05]} (
17... b4 {makes the game quite strategically messy, but probably still better
for White.}) 18. axb5 {[%emt 0:00:44]} axb5 {[%emt 0:00:04]} 19. Bxg5 {[%emt 0:
00:14]} (19. Ra7 Rd7 20. Rxd7 Qxd7 21. Bxg5 Bxg5 22. f4 Bd8 23. b3 $14 {
is another take, with c4 to come soon}) 19... Bxg5 {[%emt 0:00:06]} 20. f4 {
[%emt 0:00:13] So we get here anyway! However, here Black has good play
through the centre.} Be7 {[%emt 0:00:05]} 21. Kh1 {[%emt 0:00:23]} (21. b4 $5 {
was vaguely Carlsenesque, but objectively Black should have no problem after
accepting:} cxb4 22. cxb4 Bxb4 23. Qd3 $44) 21... d4 $1 {[%emt 0:00:26] It is
not only White who can play with colour complexes.} 22. cxd4 {[%emt 0:00:50]}
c4 {[%emt 0:00:04] Threatening ...Bc5, and Ra5 is met with ...Qb6.} 23. b3 {
[%emt 0:08:35]} (23. Qd2 $5 Qd5 (23... Bc5 24. Qa5 $16) 24. Ra5 {would have
tested Black more, though he still has compensation.}) 23... Bc5 {[%emt 0:00:
08]} 24. bxc4 {[%emt 0:00:32]} Rxd4 {[%emt 0:01:37]} 25. Qf3 {[%emt 0:09:00]}
bxc4 {[%emt 0:01:48]} 26. Rfd1 {[%emt 0:04:09]} g6 {[%emt 0:08:11]} 27. Rxd4 {
[%emt 0:13:49]} Bxd4 {[%emt 0:00:09]} 28. Rd1 $146 {[%emt 0:00:24]} (28. Ra8
Rxa8 29. Qxa8+ Kg7 30. Qb7+ Qf7 31. Qxf7+ {1/2-1/2 (31) Adams,M (2761)-Giri,A 
(2769) Shenzhen 2017}) 28... Rd8 {[%emt 0:07:05]} 29. Qb7 {[%emt 0:07:25]} Bb6
$11 {[%emt 0:02:54] Neutralised by a whisker!} 30. Rxd8+ {[%emt 0:05:21]} Bxd8
{[%emt 0:00:19]} 31. Ba4 {[%emt 0:00:43]} Qb6 {[%emt 0:02:33]} 32. Qxb6 {
[%emt 0:01:25]} Bxb6 1/2-1/2

[Event "Tata Steel-A 80th"]
[Site "Wijk aan Zee"]
[Date "2018.01.27"]
[Round "12"]
[White "Carlsen, Magnus"]
[Black "Matlakov, Maxim"]
[Result "1-0"]
[ECO "B48"]
[WhiteElo "2834"]
[BlackElo "2718"]
[Annotator "Fernandez,D"]
[PlyCount "113"]
[EventDate "2018.01.13"]
[EventType "tourn"]
[EventRounds "13"]
[EventCountry "NED"]
[EventCategory "20"]
[SourceTitle "CBM 183"]
[Source "ChessBase"]
[SourceDate "2018.03.14"]
[SourceVersion "1"]
[SourceVersionDate "2018.03.14"]
[SourceQuality "1"]
[TimeControl "40/6000+30:20/3000+30:900+30"]

1. e4 {[%emt 0:00:00]} c5 {[%emt 0:00:06]} 2. Nf3 {[%emt 0:01:09]} e6 {[%emt 0:
00:12]} 3. d4 {[%emt 0:02:08]} cxd4 {[%emt 0:00:17]} 4. Nxd4 {[%emt 0:00:02]}
Nc6 {[%emt 0:00:10]} 5. Nc3 {[%emt 0:00:12]} Qc7 {[%emt 0:00:31] Another
pull-no-punches opening choice from Matlakov, who in his Black games against
the other 2 world champions in this event (yep, quite a tough draw!) chose
innovative systems in the Italian and Ruy Lopez involving knights moving to
the edge. Maybe this is something of a habit for him, as in this game the
c6-knight soon makes its way to a5...} 6. Be3 {[%emt 0:01:25]} a6 {[%emt 0:00:
30]} (6... Nf6 7. f4 Bb4 $5 {is an interesting attempt to make do without ...
a6 for at least a few moves:} 8. Ndb5 Qa5 9. e5 Nd5 10. Bd2 Nxc3 11. Bxc3 O-O
12. Qd2 a6 (12... f6 $5 $132) 13. Bxb4 Qxb4 14. Qxb4 Nxb4 15. Nd4 $132 {
1/2-1/2 (15) Motylev,A (2656)-Svidler,P (2751) Tallinn 2016}) 7. Qd2 {[%emt 0:
01:04]} Nf6 {[%emt 0:00:53]} 8. f4 {[%emt 0:00:24]} (8. O-O-O Be7 (8... Bb4 9.
f3 {is the absolute main line:} Ne5 (9... Na5 {is also a thing here, but White
must be slightly better in the ending after a3}) 10. Nb3 b5 (10... d6 11. Bd4
$16 {was the unfortunate opening outcome (for Black) of one game from the 2016
British Championships}) 11. Qf2 $5 {Main is 11.Qe1 but this is an interesting
new idea.} Be7 $6 12. g4 d6 13. Rg1 Rb8 14. g5 $14 {Dominguez Perez,L-Vachier
Lagrave,M Berlin 2015}) 9. f3 h5 10. Nxc6 bxc6 11. Bf4 e5 12. Bg5 a5 13. Bc4 a4
14. a3 d6 15. f4 O-O 16. Rhf1 Bg4 17. Rde1 Rfd8 18. Qe3 Rab8 19. fxe5 dxe5 20.
Bxf6 Bxf6 21. h3 Rd4 22. hxg4 Rxc4 23. gxh5 Be7 24. Rf3 Rd4 25. Nd1 Qb6 26. h6
Qd8 27. Rg3 g6 28. Rf1 Rb7 29. Nf2 Bh4 30. Rg4 Bxf2 31. Qxf2 Rbd7 32. Qf3 Kh7
33. Kb1 Qe7 34. Rg3 Qh4 35. Rg4 Qe7 36. Rg3 Qd6 37. Rc1 Rd1 {Grischuk,A (2783)
-Cori Tello,J (2641) Tbilisi 2017 1/2-1/2}) 8... Bb4 {[%emt 0:02:08]} 9. Bd3 {
[%emt 0:00:41]} Na5 {[%emt 0:00:36]} (9... Ne7 $5 {tries to play ...d5 under
favourable circumstances, but just ends up looking slow after the same move}
10. a3 $14) 10. a3 {[%emt 0:00:31]} Bxc3 {[%emt 0:00:32]} 11. Qxc3 {[%emt 0:00:
02]} Qxc3+ {[%emt 0:00:18]} 12. bxc3 {[%emt 0:00:04]} d5 {[%emt 0:00:07]} 13.
exd5 {[%emt 0:00:05]} (13. e5 Ne4 14. Nb3 Nc4 $11 {led to an interesting game
with a sidelined White knight:} 15. Bxc4 dxc4 16. Na5 Bd7 17. Bd4 Rc8 18. Nxb7
Bc6 19. Na5 Bd5 $44 {Volokitin,A-Giri,A Germany 2014}) 13... exd5 {[%emt 0:01:
03]} 14. Nb3 {[%emt 0:00:09]} Nc4 {[%emt 0:00:47]} 15. Bd4 {[%emt 0:00:02]} Ne4
{[%emt 0:04:13]} 16. Nc5 {[%emt 0:01:07]} Nxc5 {[%emt 0:25:42]} 17. Bxc5 {
[%emt 0:00:05]} Bd7 {[%emt 0:00:25] The position is similar in essence to
Mamedyarov-Carlsen from yesterday - the only difference being that Carlsen
held nearly effortlessly there, but Matlakov is not able to do the same today.}
18. O-O-O {[%emt 0:02:34]} O-O-O {[%emt 0:01:38]} 19. Bxc4 {[%emt 0:00:53]}
dxc4 {[%emt 0:00:24]} 20. Bb6 {[%emt 0:00:02]} Rde8 {[%emt 0:01:07]} 21. Rd4 {
[%emt 0:00:11]} Re6 {[%emt 0:07:55] Dropping a healthy pawn by force.} (21...
Bb5 $5 22. Rhd1 Kb8 {looks a bit passive, but avoids going in for
hard-to-calculate forced lines. Black's idea is ...Rc8-c6.}) 22. Rxc4+ {
[%emt 0:00:24]} Rc6 {[%emt 0:00:48]} (22... Kb8 23. Rd1 $5 Bb5 24. Rb4 Rxb6 25.
c4 $14 {is unlikely to be much more pleasant, since Black now ends up with
doubled pawns himself.}) 23. Rxc6+ {[%emt 0:00:44]} Bxc6 {[%emt 0:00:26]} 24.
Rd1 {[%emt 0:00:25]} Bxg2 {[%emt 0:18:10]} 25. Rg1 {[%emt 0:00:14]} Be4 {
[%emt 0:12:19]} 26. Rxg7 {[%emt 0:00:44]} Bg6 {[%emt 0:00:18]} 27. a4 {[%emt 0:
12:05]} (27. f5 {immediately was also possible, and Black's drawing chances
may not be as good as they immediately seem.}) 27... Rf8 {[%emt 0:05:24]} 28.
Kb2 {[%emt 0:04:57]} Kd7 {[%emt 0:02:12]} (28... h5 {could also have been
played, since it is not clear, especially given the further course of the game,
whether having the king out helps or hinders Black's drawing efforts.}) 29. f5
{[%emt 0:00:34]} Bxf5 {[%emt 0:00:17]} 30. Bc5 {[%emt 0:00:02]} Rc8 {[%emt 0:
00:20]} 31. Rxf7+ {[%emt 0:00:07]} Ke6 {[%emt 0:00:06]} 32. Re7+ {[%emt 0:00:
03]} Kf6 {[%emt 0:00:17]} 33. Bb4 $14 {[%emt 0:00:53] Now White has a healthy
nibble, and he coaxes ...a5.} a5 {[%emt 0:09:19]} (33... b5 34. axb5 axb5 35.
Rb7 Re8 36. Rxb5 Re2 $14 {was a marginally better version of the same thing.})
34. Ba3 {[%emt 0:00:21]} Rc4 {[%emt 0:00:43]} 35. Rxb7 {[%emt 0:00:41]} Rxa4 {
[%emt 0:00:12]} 36. Ra7 {[%emt 0:05:14]} Re4 {[%emt 0:09:40]} 37. Rxa5 {
[%emt 0:00:11]} Re2 {[%emt 0:00:05]} 38. Bd6 {[%emt 0:00:05]} Bxc2 {[%emt 0:02:
20]} 39. c4 $16 {[%emt 0:00:55] Eventually Carlsen had to be able to swap one
of his doubled pawns for another pawn. The position is now completely
thankless - the best Black can hope for is not even a straight draw, but to
have to defend rook and bishop against rook!} Ke6 {[%emt 0:02:00]} 40. Ra6 {
[%emt 0:00:00]} Bf5+ {[%emt 0:05:14]} 41. Kc3 {[%emt 0:01:48]} Be4 {[%emt 0:11:
24]} 42. Kd4 {[%emt 0:06:19]} Kf5 {[%emt 0:02:03]} 43. Ra5+ {[%emt 0:00:29]}
Kg4 {[%emt 0:03:26]} 44. c5 {[%emt 0:05:32]} Bf3 {[%emt 0:05:04]} 45. Ra7 {
[%emt 0:01:20]} h6 {[%emt 0:04:19]} 46. Rh7 {[%emt 0:03:14]} Re4+ {[%emt 0:04:
33]} 47. Kd3 {[%emt 0:01:05]} Re6 {[%emt 0:00:06]} 48. Kc4 {[%emt 0:00:11]} Bc6
{[%emt 0:02:48]} 49. Rc7 {[%emt 0:00:51]} Bh1 {[%emt 0:00:47]} 50. Kb5 {
[%emt 0:01:16]} h5 {[%emt 0:02:17]} (50... Re1 $16 {keeps the game going a bit
better.}) 51. Rg7+ {[%emt 0:01:38]} Kh4 $6 {[%emt 0:01:02] Walking into all
kinds of mating motifs.} (51... Kf5 52. Rg1 Bf3 53. Rf1 {might have been a
line Black was afraid of, but he survives by defending with the rook:} Re3 $16)
52. Rg1 {[%emt 0:16:52]} Ba8 {[%emt 0:01:23]} 53. Kb6 {[%emt 0:06:28]} Re2 {
[%emt 0:01:29]} 54. Kc7 {[%emt 0:01:04]} Bd5 {[%emt 0:03:57]} 55. Rg3 {[%emt 0:
03:30]} Bh1 {[%emt 0:00:35]} (55... Rxh2 56. Rd3 {is a nice small tactic.}) 56.
Rc3 {[%emt 0:07:56]} Kg4 {[%emt 0:03:34]} 57. c6 {[%emt 0:01:07] So White has
managed everything he needs to and he will win the bishop without the need for
a h-pawn swap. In a game Sowray-Harvey, Bedford 2013, the weaker side
continued even after the win of a similar piece, but ultimately even after
some inspired resistance was unable to save half a point.} 1-0